Workbook

Sheet Sheet1
A1: 附件：
A2: 贵州广播电视大学（贵州职业技术学院）2021年公开招聘工作人员 面试成绩、总成绩及进入体检环节人员名单
A3: 序号 | B3: 姓名 | C3: 准考证号 | D3: 笔试成绩 | I3: 面试成绩 | K3: 总成绩 | L3: 报考岗位编码 | M3: 报考岗位名称 | N3: 招聘人数 | O3: 是否进入资格复审 | P3: 资格复审结果 | Q3: 是否进入面试 | R3: 是否进入体检 | S3: 备注
D4: 职业能力倾向测验成绩 | E4: 综合应用能力成绩 | F4: 原始总成绩 | G4: 折合百分制后成绩 | H4: 按折算百分制后的笔试成绩的40%折算 | I4: 原始成绩 | J4: 按原始面试成绩的60%折算
A5: 1 | B5: 刘珂 | C5: 1152282202228 | D5: 98 | E5: 102 | F5: 200 | G5: 66.67 | H5: =G5*0.4 -> 26.67 | I5: =VLOOKUP(B5,[1]电大刻盘!$B$3:$J$11,9,FALSE) -> 92.00 | J5: =I5*0.6 -> 55.20 | K5: =H5+J5 -> 81.87 | L5: 12828050101 | M5: 专业教师 | N5: 3 | O5: 是 | P5: 通过 | Q5: 是 | R5: 是
A6: 2 | B6: 朱行 | C6: 1152282204616 | D6: 95.5 | E6: 101 | F6: 196.5 | G6: 65.5 | H6: =G6*0.4 -> 26.20 | I6: =VLOOKUP(B6,[1]电大刻盘!$B$3:$J$11,9,FALSE) -> 87.80 | J6: =I6*0.6 -> 52.68 | K6: =H6+J6 -> 78.88 | L6: 12828050101 | M6: 专业教师 | O6: 是 | P6: 通过 | Q6: 是 | R6: 是
A7: 3 | B7: 张晓敏 | C7: 1152282206927 | D7: 80.5 | E7: 111 | F7: 191.5 | G7: 63.83 | H7: =G7*0.4 -> 25.53 | I7: =VLOOKUP(B7,[1]电大刻盘!$B$3:$J$11,9,FALSE) -> 87.80 | J7: =I7*0.6 -> 52.68 | K7: =H7+J7 -> 78.21 | L7: 12828050101 | M7: 专业教师 | O7: 是 | P7: 通过 | Q7: 是
A8: 4 | B8: 张燕 | C8: 1152282204803 | D8: 92 | E8: 97.5 | F8: 189.5 | G8: 63.17 | H8: =G8*0.4 -> 25.27 | I8: =VLOOKUP(B8,[1]电大刻盘!$B$3:$J$11,9,FALSE) -> 85.60 | J8: =I8*0.6 -> 51.36 | K8: =H8+J8 -> 76.63 | L8: 12828050101 | M8: 专业教师 | O8: 是 | P8: 通过 | Q8: 是
A9: 5 | B9: 王瑜 | C9: 1152282204926 | D9: 82.5 | E9: 104.5 | F9: 187 | G9: 62.33 | H9: =G9*0.4 -> 24.93 | I9: =VLOOKUP(B9,[1]电大刻盘!$B$3:$J$11,9,FALSE) -> 90.60 | J9: =I9*0.6 -> 54.36 | K9: =H9+J9 -> 79.29 | L9: 12828050101 | M9: 专业教师 | O9: 是 | P9: 通过 | Q9: 是 | R9: 是
A10: 6 | B10: 杨琳 | C10: 1152282202723 | D10: 81 | E10: 105 | F10: 186 | G10: 62 | H10: =G10*0.4 -> 24.80 | I10: =VLOOKUP(B10,[1]电大刻盘!$B$3:$J$11,9,FALSE) -> 81.40 | J10: =I10*0.6 -> 48.84 | K10: =H10+J10 -> 73.64 | L10: 12828050101 | M10: 专业教师 | O10: 是 | P10: 通过 | Q10: 是
A11: 7 | B11: 张粉 | C11: 1152282202504 | D11: 77 | E11: 109 | F11: 186 | G11: 62 | H11: =G11*0.4 -> 24.80 | I11: =VLOOKUP(B11,[1]电大刻盘!$B$3:$J$11,9,FALSE) -> 84.80 | J11: =I11*0.6 -> 50.88 | K11: =H11+J11 -> 75.68 | L11: 12828050101 | M11: 专业教师 | O11: 是 | P11: 通过 | Q11: 是
A12: 8 | B12: 毛万艺 | C12: 1152282202702 | D12: 87 | E12: 93.5 | F12: 180.5 | G12: 60.17 | H12: =G12*0.4 -> 24.07 | I12: =VLOOKUP(B12,[1]电大刻盘!$B$3:$J$11,9,FALSE) -> 87.60 | J12: =I12*0.6 -> 52.56 | K12: =H12+J12 -> 76.63 | L12: 12828050101 | M12: 专业教师 | O12: 递补 | P12: 通过 | Q12: 是
A13: 9 | B13: 涂忠梅 | C13: 1152282205930 | D13: 93.5 | E13: 86 | F13: 179.5 | G13: 59.83 | H13: =G13*0.4 -> 23.93 | I13: =VLOOKUP(B13,[1]电大刻盘!$B$3:$J$11,9,FALSE) -> 89.00 | J13: =I13*0.6 -> 53.40 | K13: =H13+J13 -> 77.33 | L13: 12828050101 | M13: 专业教师 | O13: 递补 | P13: 通过 | Q13: 是
A14: 1 | B14: 陈志国 | C14: 1152282204708 | D14: 100 | E14: 121 | F14: 221 | G14: 73.67 | H14: =G14*0.4 -> 29.47 | I14: =VLOOKUP(B14,[2]电大刻盘!$B$3:$J$6,9,FALSE) -> 91.80 | J14: =I14*0.6 -> 55.08 | K14: =H14+J14 -> 84.55 | L14: 12828050102 | M14: 专业教师 | N14: 1 | O14: 是 | P14: 通过 | Q14: 是 | R14: 是
A15: 2 | B15: 刘佳旭 | C15: 1152282203906 | D15: 120 | E15: 95 | F15: 215 | G15: 71.67 | H15: =G15*0.4 -> 28.67 | I15: =VLOOKUP(B15,[2]电大刻盘!$B$3:$J$6,9,FALSE) -> 85.80 | J15: =I15*0.6 -> 51.48 | K15: =H15+J15 -> 80.15 | L15: 12828050102 | M15: 专业教师 | O15: 是 | P15: 通过 | Q15: 是
A16: 3 | B16: 杨婧钰 | C16: 1152282204924 | D16: 114 | E16: 96.5 | F16: 210.5 | G16: 70.17 | H16: =G16*0.4 -> 28.07 | I16: =VLOOKUP(B16,[2]电大刻盘!$B$3:$J$6,9,FALSE) -> 91.90 | J16: =I16*0.6 -> 55.14 | K16: =H16+J16 -> 83.21 | L16: 12828050102 | M16: 专业教师 | O16: 是 | P16: 通过 | Q16: 是
A17: 4 | B17: 张香云 | C17: 1152282204627 | D17: 95.5 | E17: 115 | F17: 210.5 | G17: 70.17 | H17: =G17*0.4 -> 28.07 | I17: =VLOOKUP(B17,[2]电大刻盘!$B$3:$J$6,9,FALSE) -> 85.00 | J17: =I17*0.6 -> 51.00 | K17: =H17+J17 -> 79.07 | L17: 12828050102 | M17: 专业教师 | O17: 是 | P17: 通过 | Q17: 是
A18: 1 | B18: 吴景超 | C18: 1152282203310 | D18: 107 | E18: 106.5 | F18: 213.5 | G18: 71.17 | H18: =G18*0.4 -> 28.47 | I18: =VLOOKUP(B18,[3]电大刻盘!$B$3:$L$6,11,FALSE) -> 80.40 | J18: =I18*0.6 -> 48.24 | K18: =H18+J18 -> 76.71 | L18: 12828050103 | M18: 专业教师 | N18: 2 | O18: 是 | P18: 通过 | Q18: 是 | R18: 是
A19: 2 | B19: 曾晓洁 | C19: 1152282202417 | D19: 79.5 | E19: 101.5 | F19: 181 | G19: 60.33 | H19: =G19*0.4 -> 24.13 | I19: =VLOOKUP(B19,[3]电大刻盘!$B$3:$L$6,11,FALSE) -> 86.80 | J19: =I19*0.6 -> 52.08 | K19: =H19+J19 -> 76.21 | L19: 12828050103 | M19: 专业教师 | O19: 是 | P19: 通过 | Q19: 是
A20: 3 | B20: 李华山 | C20: 1152282202526 | D20: 89 | E20: 88 | F20: 177 | G20: 59 | H20: =G20*0.4 -> 23.60 | I20: =VLOOKUP(B20,[3]电大刻盘!$B$3:$L$6,11,FALSE) -> 88.80 | J20: =I20*0.6 -> 53.28 | K20: =H20+J20 -> 76.88 | L20: 12828050103 | M20: 专业教师 | O20: 是 | P20: 通过 | Q20: 是 | R20: 是
A21: 4 | B21: 李明肤 | C21: 1152282204502 | D21: 93.5 | E21: 68 | F21: 161.5 | G21: 53.83 | H21: =G21*0.4 -> 21.53 | I21: =VLOOKUP(B21,[3]电大刻盘!$B$3:$L$6,11,FALSE) -> 83.80 | J21: =I21*0.6 -> 50.28 | K21: =H21+J21 -> 71.81 | L21: 12828050103 | M21: 专业教师 | O21: 是 | P21: 通过 | Q21: 是
A22: 1 | B22: 丁当 | C22: 1152282202725 | D22: 100 | E22: 100.5 | F22: 200.5 | G22: 66.83 | H22: =G22*0.4 -> 26.73 | I22: =VLOOKUP(B22,[4]电大刻盘!$B$3:$L$4,11,FALSE) -> 87.60 | J22: =I22*0.6 -> 52.56 | K22: =H22+J22 -> 79.29 | L22: 12828050104 | M22: 专业教师 | N22: 2 | O22: 是 | P22: 通过 | Q22: 是 | R22: 是
A23: 2 | B23: 姜华 | C23: 1152282207324 | D23: 76 | E23: 79 | F23: 155 | G23: 51.67 | H23: =G23*0.4 -> 20.67 | I23: =VLOOKUP(B23,[4]电大刻盘!$B$3:$L$4,11,FALSE) -> 82.00 | J23: =I23*0.6 -> 49.20 | K23: =H23+J23 -> 69.87 | L23: 12828050104 | M23: 专业教师 | O23: 是 | P23: 通过 | Q23: 是 | R23: 是
A24: 1 | B24: 邓倖之 | C24: 1152282204521 | D24: 119.5 | E24: 107.5 | F24: 227 | G24: 75.67 | H24: =G24*0.4 -> 30.27 | I24: =VLOOKUP(B24,[5]电大刻盘!$B$3:$J$18,9,FALSE) -> 90.00 | J24: =I24*0.6 -> 54.00 | K24: =H24+J24 -> 84.27 | L24: 12828050105 | M24: 辅导员 | N24: 6 | O24: 是 | P24: 通过 | Q24: 是 | R24: 是
A25: 2 | B25: 饶臣宏 | C25: 1152282313420 | D25: 103.5 | E25: 120.5 | F25: 224 | G25: 74.67 | H25: =G25*0.4 -> 29.87 | I25: =VLOOKUP(B25,[5]电大刻盘!$B$3:$J$18,9,FALSE) -> 91.40 | J25: 54.84 | K25: 84.71 | L25: 12828050105 | M25: 辅导员 | O25: 是 | P25: 通过 | Q25: 是 | R25: 是
A26: 3 | B26: 杨鑫馨 | C26: 1152282203621 | D26: 103.5 | E26: 119 | F26: 222.5 | G26: 74.17 | H26: =G26*0.4 -> 29.67 | I26: =VLOOKUP(B26,[5]电大刻盘!$B$3:$J$18,9,FALSE) -> 92.20 | J26: 55.32 | K26: 84.99 | L26: 12828050105 | M26: 辅导员 | O26: 是 | P26: 通过 | Q26: 是 | R26: 是
A27: 4 | B27: 唐中敏 | C27: 1152282308528 | D27: 110.5 | E27: 111 | F27: 221.5 | G27: 73.83 | H27: =G27*0.4 -> 29.53 | I27: =VLOOKUP(B27,[5]电大刻盘!$B$3:$J$18,9,FALSE) -> 86.40 | J27: 51.84 | K27: 81.37 | L27: 12828050105 | M27: 辅导员 | O27: 是 | P27: 通过 | Q27: 是 | R27: 是
A28: 5 | B28: 江靖雯 | C28: 1152282310920 | D28: 107 | E28: 113 | F28: 220 | G28: 73.33 | H28: =G28*0.4 -> 29.33 | L28: 12828050105 | M28: 辅导员 | O28: 是 | P28: 通过 | Q28: 是 | S28: 未按规定参加面试
A29: 6 | B29: 岳廷颖 | C29: 1152282311526 | D29: 96 | E29: 122.5 | F29: 218.5 | G29: 72.83 | H29: =G29*0.4 -> 29.13 | I29: =VLOOKUP(B29,[5]电大刻盘!$B$3:$J$18,9,FALSE) -> 89.90 | J29: 53.94 | K29: 83.07 | L29: 12828050105 | M29: 辅导员 | O29: 是 | P29: 通过 | Q29: 是 | R29: 是
A30: 7 | B30: 郭梦 | C30: 1152282309414 | D30: 106 | E30: 112.5 | F30: 218.5 | G30: 72.83 | H30: =G30*0.4 -> 29.13 | I30: =VLOOKUP(B30,[5]电大刻盘!$B$3:$J$18,9,FALSE) -> 73.80 | J30: 44.28 | K30: 73.41 | L30: 12828050105 | M30: 辅导员 | O30: 是 | P30: 通过 | Q30: 是
A31: 8 | B31: 冯江婷 | C31: 1152282314625 | D31: 107.5 | E31: 108.5 | F31: 216 | G31: 72 | H31: =G31*0.4 -> 28.80 | I31: =VLOOKUP(B31,[5]电大刻盘!$B$3:$J$18,9,FALSE) -> 89.00 | J31: 53.40 | K31: 82.20 | L31: 12828050105 | M31: 辅导员 | O31: 是 | P31: 通过 | Q31: 是 | R31: 是
A32: 9 | B32: 杨晨 | C32: 1152282308215 | D32: 98 | E32: 117.5 | F32: 215.5 | G32: 71.83 | H32: =G32*0.4 -> 28.73 | I32: =VLOOKUP(B32,[5]电大刻盘!$B$3:$J$18,9,FALSE) -> 87.20 | J32: 52.32 | K32: 81.05 | L32: 12828050105 | M32: 辅导员 | O32: 是 | P32: 通过 | Q32: 是
A33: 10 | B33: 魏思琦 | C33: 1152282314130 | D33: 104.5 | E33: 107.5 | F33: 212 | G33: 70.67 | H33: =G33*0.4 -> 28.27 | L33: 12828050105 | M33: 辅导员 | O33: 是 | P33: 通过 | Q33: 是 | S33: 放弃面试资格
A34: 11 | B34: 王荟 | C34: 1152282207021 | D34: 100 | E34: 110.5 | F34: 210.5 | G34: 70.17 | H34: =G34*0.4 -> 28.07 | I34: =VLOOKUP(B34,[5]电大刻盘!$B$3:$J$18,9,FALSE) -> 82.00 | J34: 49.20 | K34: 77.27 | L34: 12828050105 | M34: 辅导员 | O34: 是 | P34: 通过 | Q34: 是
A35: 12 | B35: 丁梦琪 | C35: 1152282308508 | D35: 98.5 | E35: 111 | F35: 209.5 | G35: 69.83 | H35: =G35*0.4 -> 27.93 | I35: =VLOOKUP(B35,[5]电大刻盘!$B$3:$J$18,9,FALSE) -> 81.00 | J35: 48.60 | K35: 76.53 | L35: 12828050105 | M35: 辅导员 | O35: 是 | P35: 通过 | Q35: 是
A36: 13 | B36: 孙佳 | C36: 1152282312117 | D36: 97.5 | E36: 112 | F36: 209.5 | G36: 69.83 | H36: =G36*0.4 -> 27.93 | I36: =VLOOKUP(B36,[5]电大刻盘!$B$3:$J$18,9,FALSE) -> 84.00 | J36: 50.40 | K36: 78.33 | L36: 12828050105 | M36: 辅导员 | O36: 是 | P36: 通过 | Q36: 是
A37: 14 | B37: 雷娜 | C37: 1152282315001 | D37: 107.5 | E37: 101 | F37: 208.5 | G37: 69.5 | H37: =G37*0.4 -> 27.80 | I37: =VLOOKUP(B37,[5]电大刻盘!$B$3:$J$18,9,FALSE) -> 83.20 | J37: 49.92 | K37: 77.72 | L37: 12828050105 | M37: 辅导员 | O37: 是 | P37: 通过 | Q37: 是
A38: 15 | B38: 叶剑挺 | C38: 1152282310002 | D38: 101.5 | E38: 106.5 | F38: 208 | G38: 69.33 | H38: =G38*0.4 -> 27.73 | I38: =VLOOKUP(B38,[5]电大刻盘!$B$3:$J$18,9,FALSE) -> 89.00 | J38: 53.40 | K38: 81.13 | L38: 12828050105 | M38: 辅导员 | O38: 递补 | P38: 通过 | Q38: 是
A39: 16 | B39: 黎南 | C39: 1152282205928 | D39: 97.5 | E39: 109.5 | F39: 207 | G39: 69 | H39: =G39*0.4 -> 27.60 | I39: =VLOOKUP(B39,[5]电大刻盘!$B$3:$J$18,9,FALSE) -> 84.40 | J39: 50.64 | K39: 78.24 | L39: 12828050105 | M39: 辅导员 | O39: 递补 | P39: 通过 | Q39: 是
A40: 17 | B40: 王梓怡 | C40: 1152282310911 | D40: 92.5 | E40: 114.5 | F40: 207 | G40: 69 | H40: =G40*0.4 -> 27.60 | I40: =VLOOKUP(B40,[5]电大刻盘!$B$3:$J$18,9,FALSE) -> 80.20 | J40: 48.12 | K40: 75.72 | L40: 12828050105 | M40: 辅导员 | O40: 递补 | P40: 通过 | Q40: 是
A41: 18 | B41: 杨舒婷 | C41: 1152282311307 | D41: 94 | E41: 112.5 | F41: 206.5 | G41: 68.83 | H41: =G41*0.4 -> 27.53 | I41: =VLOOKUP(B41,[5]电大刻盘!$B$3:$J$18,9,FALSE) -> 83.00 | J41: 49.80 | K41: 77.33 | L41: 12828050105 | M41: 辅导员 | O41: 递补 | P41: 通过 | Q41: 是
